Cogmind - Beta 13 @@@ ROGUE MODE // 2024.04.13 @ 18:01:12 Player: Rizzen Result: Destroyed by G-47 Trooper with Particle Gun Performance ------------- Evolutions (2) 1000 Regions Visited (3) 600 Robots Destroyed (113) 565 Value Destroyed (2810) 2810 Prototype IDs (5) 100 Alien Tech Used (0) 0 Bonus (200) 200 TOTAL SCORE: 5275 Bonus ------- High Alert Combat Kills 200 Cogmind --------- Core Integrity 0/550 Matter 233/300 Energy 54/160 System Corruption 0% Temperature Warm (178) Movement Flying (110) Ox1 Location -8/Materials Parts ------- > --- POWER (1) -------- Light Nuclear Core > --- PROPULSION (3) --- Improved Flight Unit > --- UTILITY (5) ------ Improved Signal Interpreter Melee Analysis Suite Hacking Suite System Shield > --- WEAPON (2) ------- Field Laser > --- INVENTORY (5) ---- (None) Peak State ------------ > --- POWER ------------ Light Nuclear Core > --- PROPULSION ------- Improved Flight Unit Improved Flight Unit Improved Flight Unit > --- UTILITY ---------- Signal Interpreter Melee Analysis Suite Remote Shield Hacking Suite System Shield > --- WEAPON ----------- Rocket Launcher Katana > --- INVENTORY -------- Light Ion Engine Improved Flight Unit Improved Flight Unit Improved Heat Sink [Rating: 33] Favorites ----------- Power Ion Engine Engine Ion Engine Power Core Light Nuclear Core Propulsion Light Treads Treads Light Treads Flight Unit Improved Flight Unit Utility Signal Interpreter Device Sensor Array Storage Large Storage Unit Processor Signal Interpreter Hackware Hacking Suite Weapon Assault Rifle Energy Gun Shock Rifle Energy Cannon Advanced Beam Cannon Ballistic Gun Assault Rifle Ballistic Cannon Assault Cannon Launcher Rocket Launcher Slashing Weapon Katana Build | -11 -10 -9 -8 ------- Run | Yrd Mat Mat Mat Slots Evolved 4 | . . 2 2 Power . | . . . . Propulsion 1 | . . . 1 Utility 3 | . . 2 1 Weapon . | . . . . Parts Attached 98 | 7 10 48 33 Power 19 | 1 2 11 5 Engine 14 | 1 2 10 1 Core 5 | . . 1 4 Reactor . | . . . . Propulsion 25 | 2 2 15 6 Treads 19 | 2 2 14 1 Leg . | . . . . Wheel . | . . . . Hover . | . . . . Flight 6 | . . 1 5 Utility 20 | 2 3 3 12 Device 9 | 1 . 1 7 Storage 3 | 1 2 . . Processor 6 | . 1 2 3 Hackware 2 | . . . 2 Protection . | . . . . Artifact . | . . . . Weapon 34 | 2 3 19 10 Energy Gun 2 | . . . 2 Energy Cannon 1 | . . 1 . Ballistic Gun 21 | 2 3 14 2 Ballistic Cannon 1 | . . . 1 Launcher 5 | . . 4 1 Special Weapon . | . . . . Impact Weapon . | . . . . Slashing Weapon 4 | . . . 4 Piercing Weapon . | . . . . Special Melee Weapon . | . . . . Unidentified Prototypes 3 | . . 3 . Parts Lost 22 | . . 8 14 Power 4 | . . 3 1 Propulsion 6 | . . 1 5 Utility 4 | . . 1 3 Weapon 8 | . . 3 5 Highest Loss Streak 9 | . . 2 9 To Critical Strikes 1 | . . 1 . Average Slot Usage (%) 98 | . 98 99 93 Engine 11 | . 13 10 4 Treads 22 | . 27 21 5 Flight 1 | . . . 19 Device 4 | . . 5 6 Storage 11 | . 14 11 2 Processor 22 | . 13 27 20 Hackware 1 | . . . 13 Ballistic Gun 21 | . 27 21 4 Naked Turns . | . . . . Heaviest Build 34 | 15 30 34 34 Greatest Support 63 | 40 40 43 63 Greatest Overweight (x) 1 | . 1 . 1 Average Overweight (x) . | . . . . Largest Inventory Capacity 15 | 8 15 15 15 Average Capacity 14 | 7 14 15 7 Most Carried 15 | 6 15 15 13 Average Carried 12 | 2 10 14 5 Final Capacity 15 | 8 15 15 5 Final Carried 15 | 2 15 14 . Class Distribution -------------------- 80% | Mutant 15% | Scavenger-Mutant 3% | Hacker-Mutant Dominant Class ---------------- Mutant | -10/Materials Mutant | -9/Materials Hacker-Mutant | -8/Materials Resources | -11 -10 -9 -8 ----------- Run | Yrd Mat Mat Mat Matter Collected 2794 | 288 584 1676 246 Remotely . | . . . . Salvage Created 4351 | 103 880 2596 772 Parts 283 | 5 77 155 46 Haulers Intercepted 8 | . 2 5 1 Recyclers Shooed 1 | . . 1 . Parts Field Recycled . | . . . . Retrieved Matter . | . . . . Parts Self-Destructed . | . . . . Prevented . | . . . . Kills | -11 -10 -9 -8 ------- Run | Yrd Mat Mat Mat Combat Hostiles Destroyed 90 | . 18 54 18 Melee 12 | . . . 12 Guns 72 | . 18 51 3 Cannons 6 | . . 3 3 Classes Destroyed 13 | 2 6 3 2 Worker 8 | . 5 2 1 Tunneler 1 | 1 . . . Hauler 8 | . 2 5 1 Recycler 3 | 1 . 2 . Operator 5 | . 2 3 . Watcher 9 | . 3 5 1 Swarmer 18 | . 5 9 4 Cutter 2 | . . . 2 Grunt 57 | . 13 34 10 Brawler 1 | . . . 1 Duelist 1 | . . 1 . Protector 1 | . . 1 . Sentry 10 | . . 9 1 Best Kill Streak 5 | 2 5 5 5 Combat Bots Only 5 | . 3 4 5 Max Kills in Single Turn 2 | 1 1 2 1 Gunslinging . | . . . . Exploded . | . . . . Melee 1 | . . . 1 Uniques/NPCs Destroyed . | . . . . Combat | -11 -10 -9 -8 -------- Run | Yrd Mat Mat Mat Hostile Shots Fired 503 | . 101 249 153 Missed 145 | . 32 65 48 Damage Taken 4536 | . 787 2250 1499 Core 1093 | . 151 390 552 Absorbed by Shields 43 | . . . 43 Regen/Repaired (Parts) 338 | . 338 . . Core Remaining (%) 47 | 100 39 2 . Volleys Fired 302 | 3 71 200 28 Largest 2 | 2 2 2 2 Hottest 113 | 40 40 91 113 Shots Fired 581 | 6 144 394 37 Gun 545 | 6 144 377 18 Cannon 29 | . . 10 19 Launcher 7 | . . 7 . Special . | . . . . Kinetic 540 | 6 144 377 13 Thermal 28 | . . 10 18 Explosive 7 | . . 7 . Electromagnetic 6 | . . . 6 Robot Hit Streak 40 | 4 13 40 5 Robot Miss Streak 4 | 1 4 4 3 Penetration Max . | . . . . Secondary Targets 6 | . 1 5 . Max Gunslinging Chain 1 | . 1 1 . Shots Hit Robots 443 | 4 92 284 63 Core Hits 183 | 3 45 112 23 Critical Kills . | . . . . Critical Parts Destroyed 2 | . . 2 . Critical Strikes 7 | . . 2 5 Burn 1 | . . . 1 Destroy 2 | . . 2 . Sever 4 | . . . 4 Melee Attacks 64 | . . . 64 Impact . | . . . . Slashing 64 | . . . 64 Piercing . | . . . . Sneak Attacks 2 | . . . 2 Combat Hostiles . | . . . . Follow-up Attacks . | . . . . Damage Inflicted 7331 | 56 1255 4232 1788 Guns 5503 | 56 1187 4053 207 Cannons 411 | . . 142 269 Explosions 105 | . 68 37 . Melee 1312 | . . . 1312 Ramming . | . . . . Kinetic 5468 | 56 1187 4053 172 Thermal 423 | . 68 142 213 Explosive 37 | . . 37 . Electromagnetic 91 | . . . 91 Impact . | . . . . Slashing 1312 | . . . 1312 Piercing . | . . . . Highest Corruption 3 | . 2 3 . Average Corruption 2 | . 2 2 . Corruption Purged . | . . . . Corruption Blocked . | . . . . Effects 32 | . 17 15 . Message Errors 4 | . . 4 . Matter Fused 12 | . 7 5 . Heat Flow Errors 4 | . 1 3 . Energy Discharges 2 | . 1 1 . Data Loss (minor) 2 | . 2 . . Data Loss (major) 4 | . 3 1 . Misfires 3 | . 2 1 . Alerts 1 | . 1 . . Overload Shots . | . . . . Overflow Damage 47 | . . . 47 Projectiles 11 | . . . 11 Explosions . | . . . . Melee 36 | . . . 36 Knockbacks 2 | . . . 2 Impact . | . . . . Kinetic 2 | . . . 2 Secondary . | . . . . Self-Inflicted Damage 86 | . 86 . . Shots 1 | . 1 . . Rammed . | . . . . Targets Rammed . | . . . . Kicked . | . . . . Crushed . | . . . . Highest Temperature 174 | . 174 157 169 Average Temperature 50 | . 59 40 63 Received Heat Transfer 1710 | . 306 900 504 Siege Activations . | . . . . Robots Corrupted . | . . . . Combat Hostiles . | . . . . Parts Fried . | . . . . Impact Corruptions . | . . . . Robots Melted . | . . . . Combat Hostiles . | . . . . Parts Melted 1 | . . . 1 Heat Transferred 790 | . 50 259 481 Parts Sabotaged . | . . . . Parts Stolen . | . . . . Parts Stripped . | . . . . Power Chain Reactions . | . . . . Alert | -11 -10 -9 -8 ------- Run | Yrd Mat Mat Mat Peak Influence 643 | 10 274 643 475 Initial 261 | . 6 55 261 Average 241 | 5 130 304 298 Maximum Alert Level 2 | . 1 2 2 Low Security (%) 51 | 100 88 35 11 Level 1 29 | . 11 35 66 Level 2 18 | . . 29 22 Level 3 . | . . . . Level 4 . | . . . . Level 5 . | . . . . High Security . | . . . . Max Security . | . . . . Sterilizations 1 | . . 1 . Squads Dispatched 20 | . 6 11 3 Investigation 9 | . 4 5 . Extermination . | . . . . Reinforcement 10 | . 2 5 3 Assault 1 | . . 1 . Garrison . | . . . . Intercept . | . . . . Searches Triggered . | . . . . Construction Impeded . | . . . . Haulers Reinforced . | . . . . Active Scanning Responses . | . . . . Cargo Convoy Interrupts . | . . . . Stealth | -11 -10 -9 -8 --------- Run | Yrd Mat Mat Mat Distress Signals 9 | . 2 3 4 Communications Jammed . | . . . . Distress Signals . | . . . . Times Spotted 137 | . 31 74 32 Peak Tracking Total 6 | . 4 5 6 Tactical Retreats 12 | . 2 5 5 Traps | -11 -10 -9 -8 ------- Run | Yrd Mat Mat Mat Traps Triggered 5 | . 3 2 . Indirectly . | . . . . Trap Hack Attempts . | . . . . Triggered . | . . . . Disarmed . | . . . . Reprogrammed . | . . . . Reused . | . . . . Traps Extracted . | . . . . Installed . | . . . . Triggered . | . . . . Machines | -11 -10 -9 -8 ---------- Run | Yrd Mat Mat Mat Machines Disabled 2 | . 1 1 . Max in Single Turn 1 | . 1 1 . Machines Repaired . | . . . . Machines Dismantled . | . . . . Machines Sabotaged . | . . . . Overloaded Fab Kills . | . . . . Hacking | -11 -10 -9 -8 --------- Run | Yrd Mat Mat Mat Machines Accessed 21 | . 6 12 3 Terminals 12 | . 3 7 2 Fabricators . | . . . . Repair Stations 2 | . 1 1 . Recycling Units 4 | . 2 2 . Scanalyzers 3 | . . 2 1 Garrison Access . | . . . . Total Hacks 68 | . 18 34 16 Successful 46 | . 12 25 9 Failed 22 | . 6 9 7 Catastrophic 2 | . 1 1 . Database Lockouts . | . . . . Manual 31 | . 6 14 11 Terminals 38 | . 8 19 11 Fabricators . | . . . . Repair Stations 11 | . 8 3 . Recycling Units 5 | . 2 3 . Scanalyzers 14 | . . 9 5 Garrison Access . | . . . . Terminal Hacks 10 | . 1 5 4 Prototype ID Bank 1 | . 1 . . Alert Level 4 | . . 2 2 Unreport Threat 5 | . . 3 2 Fabricator Hacks . | . . . . Repair Station Hacks 9 | . 8 1 . Scan Component 5 | . 4 1 . Repair 4 | . 4 . . Recycling Unit Hacks 5 | . 2 3 . Report Inventory 4 | . 2 2 . Retrieve Components 1 | . . 1 . Scanalyzer 13 | . . 9 4 Insert Component 6 | . . 5 1 Analyze 7 | . . 4 3 Garrison Access Hacks . | . . . . Unauthorized Hacks 9 | . 1 7 1 Terminals 9 | . 1 7 1 Botnet 9 | . 1 7 1 Fabricators . | . . . . Repair Stations . | . . . . Recycling Units . | . . . . Scanalyzers . | . . . . Garrison Access . | . . . . Data Cores Recovered . | . . . . Used . | . . . . Hacking Detections 17 | . 4 10 3 Full Trace Events 11 | . 4 7 . Feedback Events . | . . . . Feedback Blocked . | . . . . Robot Schematics Acquired . | . . . . Robots Built . | . . . . Authchips . | . . . . Time . | . . . . Total Robot Build Rating . | . . . . Part Schematics Acquired 4 | . . 3 1 Parts Built . | . . . . Authchips . | . . . . Time . | . . . . Total Part Build Rating . | . . . . Parts Repaired 4 | . 4 . . Time 104 | . 104 . . Parts Recycled . | . . . . Recycled Matter . | . . . . Retrieved Matter . | . . . . Retrieved Components 9 | . . 9 . Parts Scanalyzed 4 | . . 3 1 Part Schematics Acquired 4 | . . 3 1 Parts Damaged . | . . . . Bothacking | -11 -10 -9 -8 ------------ Run | Yrd Mat Mat Mat Used RIF Installer . | . . . . Robots Hacked . | . . . . Non-combat . | . . . . Combat . | . . . . Robot Hacks Applied . | . . . . Relay Couplers Released . | . . . . Fabnet Peak Effective % . | . . . . Robots Rewired . | . . . . Allies Hacked . | . . . . Hacks Repelled . | . . . . Allies | -11 -10 -9 -8 -------- Run | Yrd Mat Mat Mat Total Allies . | . . . . Largest Group . | . . . . Highest-Rated Group . | . . . . Highest-Rated Ally . | . . . . Total Orders . | . . . . Ally Attacks . | . . . . Total Damage . | . . . . Kills . | . . . . Allies Corrupted . | . . . . Allies Melted . | . . . . Intel | -11 -10 -9 -8 ------- Run | Yrd Mat Mat Mat Robot Analysis Total . | . . . . Derelict Logs Recovered . | . . . . Drone Launches . | . . . . Drone Recoveries . | . . . . Exploration | -11 -10 -9 -8 ------------- Run | Yrd Mat Mat Mat Turns Passed 6113 | 127 1972 3489 525 Spaces Moved 3026 | 66 981 1628 351 Core 5 | 5 . . . Treads 2716 | 61 981 1628 46 Legs . | . . . . Wheels . | . . . . Hover . | . . . . Flight 305 | . . . 305 Fastest Speed 34 | 50 160 160 34 Average Speed 147 | 151 160 160 53 Slowest Speed 240 | 160 240 160 160 Overloaded Moves . | . . . . Propulsion Burnouts . | . . . . Robots Hopped . | . . . . Cave-ins Triggered . | . . . . Exploration Rate (%) 56 | 5 98 95 28 Regions Visited 3 Branch Regions . Pre-discovered Areas . | . . . . Known Exits Taken 2 | . 1 1 . Unknown Exits Taken 1 | 1 . . . Scrap Searched . | . . . . Spaces Dug 33 | . . 20 13 Terrain Destroyed 98 | . 41 44 13 Melee 13 | . . . 13 Projectile . | . . . . AOE 85 | . 41 44 . Terrain Rammed . | . . . . Walls Destroyed . | . . . . Machines Disabled . | . . . . Actions | -11 -10 -9 -8 --------- Run | Yrd Mat Mat Mat Total 4019 | 87 1246 2126 560 Wait 358 | 4 134 173 47 Move 3023 | 65 980 1627 351 Hop . | . . . . Pick Up 97 | 8 33 37 19 Fast Attach 15 | 1 2 9 3 Attach 50 | 6 4 14 26 Detach . | . . . . Swap 33 | . 4 25 4 Drop 77 | . 18 41 18 Fire 302 | 3 71 200 28 Melee 64 | . . . 64 Ram . | . . . . Kick . | . . . . Crush . | . . . . Escape Stasis . | . . . . Rewire . | . . . . Trap . | . . . . Miscellaneous . | . . . . Route ------- -11/Scrapyard -10/Materials (discovered 4 exits: *Mat x3 / *Min) -9/Materials (discovered 4 exits: *Mat x2 / *Min x2) -8/Materials (discovered 1 exit: *Fac) History --------- Turn | Location | Event 11 | -11/Scrapyard | Discovered new exit (range 15) 128 | -11/Scrapyard | Entered Materials 316 | -10/Materials | Build established: Mutant 490 | -10/Materials | Repaired Lgt. Treads 521 | -10/Materials | Repaired Assault Rifle 551 | -10/Materials | Repaired Assault Rifle 586 | -10/Materials | Discovered new exit (range 6) 596 | -10/Materials | Identified exit to Materials 839 | -10/Materials | Discovered exit to Materials (range 14) 869 | -10/Materials | Core integrity fell below 50% 1122 | -10/Materials | Discovered exit to Materials (range 5) 1865 | -10/Materials | Discovered new exit (range 16) 1935 | -10/Materials | Identified exit to Mines 2064 | -10/Materials | Repaired Assault Rifle 2100 | -10/Materials | Entered another Materials area 2100 | -9/Materials | Evolved 2 slots: Utility x2 2703 | -9/Materials | Build established: Scavenger-Mutant 2725 | -9/Materials | Discovered new exit (range 14) 2803 | -9/Materials | Identified exit to Mines 3528 | -9/Materials | Build established: Mutant 3860 | -9/Materials | Core integrity fell below 50% 4401 | -9/Materials | Discovered new exit (range 13) 4506 | -9/Materials | Identified exit to Materials 4564 | -9/Materials | Discovered exit to Mines (range 11) 4900 | -9/Materials | First assault squad dispatched 4994 | -9/Materials | Core integrity fell below 20% 5154 | -9/Materials | Discovered exit to Materials (range 3) 5506 | -9/Materials | Sterilization system engaged 5506 | -9/Materials | Non-combat units ordered to evacuate 5589 | -9/Materials | Entered another Materials area 5589 | -8/Materials | Evolved 2 slots: Propulsion x1, Utility x1 5970 | -8/Materials | Discovered new exit (range 15) 5979 | -8/Materials | Identified exit to Factory 6050 | -8/Materials | Core integrity fell below 50% 6078 | -8/Materials | Core integrity fell below 20% 6114 | -8/Materials | Destroyed by G-47 Trooper with Particle Gun Last Messages --------------- 06078_ R-06 Scavenger collects Surge Thruster. 06081_ Blade Saw severed. 06081_ Lgt. Nuclear Core destroyed. 06081_ Acquired Blade Saw. 06081_ R-06 Scavenger collects Com. Wheel. 06084_ C-17 Slicer destroyed. 06085_ Blade Saw destroyed. 06085_ R-06 Scavenger collects Reaction Control System. 06087_ Acquired Unknown Energy Gun. 06088_ Identified Shock Rifle. 06089_ Critical hit (Burn: +37). 06092_ G-47 Trooper destroyed. 06096_ Imp. Flight Unit destroyed. 06097_ Acquired 33 matter. 06098_ Acquired Lgt. Nuclear Core. 06100_ Acquired Field Laser. 06110_ Shock Rifle destroyed. 06112_ Imp. Flight Unit destroyed. 06113_ G-47 Trooper suffers critical hit (Burn). Map ----- +----------------------------------------------------+ | ?????????# #???# #?????? | | ?????????# !] #???# [ [ #?????? | | ?????????# !! #???# #?????? | | ?????????# ] #???# "S """ #?????? | | ?????????# *=! #???# """ """ #?????? | | ?????????# ==%==#???# "" """ #?????? | | ?????????+ ####+####### #?????? | | ?????????# ##!%%== ############?????? | | ?????????## ##*% !* T #????????????????? | | ??????????# #######+#### #????????????????? | | ???########/#" # !! #????????????????? | | ???# # """ """ #! !! #????????????????? | | ???# ! # """ """ #* ! #????????????????? | | ???# = # """ """ #% #????????????????? | | ???# ]] # #=########????????????????? | | ???# ]] # ###???????????????????????? | | ???# ! # #?????????????????????????? | | ???# %% # #?????????????????????????? | | ???# ! ###########?????????????????????????? | | ???##### #####??##???????????????????????????????? | | #### # ### ## ########???????????????????????? | | "" ###?????????????????????? | | ! T =*= +?????????????????????? | | =%= [=%#???????????????????????? | | ##+### # #####m####?????????????????????? | | ! ######## = @*#?????????????????????? | | """ # # %%=g% #?????????????????????? | | """ ## # # " %[ #?????????????????????? | | """ ## + # """" #?????????????????????? | | ## # """ # """" #?????????????????????? | | ## # """"" # #?????????????????????? | | ## # """"" #######+#?????????????????????? | | #####"# # """"" #?????? ?????????????????????? | | ??##### # """ #?????? ????????????????????? | | ??#!! # #?????? ###???????????????????? | | ??#!! "#########?????? #?????????????????????? | | ??#!! ##?????????????? #?????????????????????? | | ??#!! < #??????????????? #?????????????????????? | | ??#! #??????????????????????????????????????? | | ??#!! #####??????????????????????????????????????? | | ??#####??????????????????????????????????????????? | | ?????????????????????????????????????????????????? | | ?????????????????????????????????????????????????? | | ?????????????????????????????????????????????????? | | ?????????????????????????????????????????????????? | | | | | | | | | | | +----------------------------------------------------+ Best States ------------- Heat Dissipation 45 Energy Generation 14 Energy Capacity 280 Matter Stores 300 Matter Capacity 300 Sight Range 16 Robot Scan Range 15 Terrain Scan Density 10 ECM Strength 1 Evasion (%) 63 Targeting Accuracy 10 Melee Accuracy 5 Recoil Reduction 3 Offensive Hacking 10 Defensive Hacking 10 Item Schematics ----------------- Imp. Flight Unit | -9/Materials | Scanalyzed Hacking Suite | -9/Materials | Scanalyzed Katana | -9/Materials | Scanalyzed Remote Shield | -8/Materials | Scanalyzed Robot Schematics ------------------ None Fabricated ------------ Nothing Alien Tech Used ----------------- None Achievements -------------- None Challenges ------------ None Game ------ Seed DataLinkedDiverter Manual? 0 Play Time 00:59:09 Cumulative 29.2 hours Start 2024.04.13 @ 17:00:41 End 2024.04.13 @ 18:01:12 Sessions 1 Manual Loads 0 Difficulty Rogue Special Mode None Game No. 19 Rogue 19 Adventurer 0 Explorer 0 Win Type - Total 0 Types 0/0/0/0/0/0/0/0/0 Lore% 16 Gallery% 29 Achievement% 24 Wizard Run 0 Options --------- Layout 1 ASCII 0 Keyboard 0 Movement Mouse Keybinds 0 Fullscreen 1 Font 32/SmallcapsGlow Map View 50x35 Zoom Use 0% Tactical HUD 1 Map Filters NONE Filters NONE Steam 0 RUN: 9d655049-a0a7-49d8-af02-33e0f74b2785